[Event "13th London Chess Classic 2023"]
[Site "London"]
[Date "2023.12.01"]
[Round "1.1"]
[White "Vitiugov, Nikita"]
[Black "Volokitin, Andrei"]
[Result "1/2-1/2"]
[ECO "A38"]
[WhiteElo "2712"]
[BlackElo "2660"]
[Annotator "TA"]
[PlyCount "87"]
[EventDate "2023.11.27"]
[EventType "tourn"]
[EventCountry "ENG"]
[SourceTitle "playchess.com"]
[Source "ChessBase"]
[SourceQuality "1"]
[TimeControl "40/5400+30:1800+30"]

{[%evp 17,87,7,14,2,14,0,0,0,4,0,7,0,3,0,34,35,52,53,41,32,52,38,52,26,32,34,21,31,111,0,0,0,0,0,0,0,0,0,0,0,0,0,0,0,0,0,0,0,0,0,0,0,0,0,0,0,0,0,0,0,0,0,0,0,0,0,0,0,0,0,0,0]} 1. Nf3 {[%emt 0:00:31]} Nf6 {[%emt 0:00:23]} 2. b3 {[%emt 0:00:57]} g6 {[%emt 0:06:56]} 3. Bb2 {[%emt 0:00:36]} Bg7 {[%emt 0:00:07]} 4. g3 {[%emt 0:00:29]} c5 {[%emt 0:01:51]} 5. c4 {[%emt 0:00:32]} d6 {[%emt 0:07:55]} 6. Bg2 {[%emt 0:03:30]} e5 {[%emt 0:03:38]} 7. O-O {[%emt 0:00:42]} Nc6 {[%emt 0:00:50]} 8. Nc3 {[%emt 0:00:56]} O-O {[%emt 0:01:03]} 9. d3 {[%emt 0:02:10]} Ne8 {[%emt 0:20:45]} 10. a3 {[%emt 0:05:00] A38: Symmetrical English vs ...g6: 4 Bg2 Bg7 5 Nf3 Nf6.} a5 {[%emt 0:05:38] [#]} 11. Ne1 $146 {[%emt 0:09:46]} ({Predecessor:} 11. Nd2 Nc7 12. e3 Be6 13. Nd5 Rb8 14. Nxc7 Qxc7 15. Ne4 b5 16. Nc3 Na7 17. Rb1 a4 {½-½ Kazakouski,V (2499)-Brazdzionis,A (2321) Panevezys Kveinys Memorial op 2021 (5)}) 11... Nc7 {[%emt 0:02:29]} 12. Nc2 {[%emt 0:01:05]} Rb8 {[%emt 0:11:40]} 13. Ne3 {[%emt 0:16:47]} Bd7 {[%emt 0:06:04]} 14. Ned5 {[%emt 0:03:14]} Nxd5 {[%emt 0:02:21]} 15. Nxd5 {[%emt 0:02:31]} Ne7 {[%emt 0:12:47]} 16. Nxe7+ {[%emt 0:02:22]} Qxe7 {[%emt 0:00:02]} 17. Bc3 {[%emt 0:00:12]} b6 {[%emt 0:06:12]} 18. b4 {[%emt 0:01:39]} axb4 {[%emt 0:02:10]} 19. axb4 {[%emt 0:00:03]} b5 {[%emt 0:00:05]} 20. Ra7 {[%emt 0:14:14] Threatens to win with Bc6.} cxb4 {[%emt 0:00:13]} 21. Bxb4 {[%emt 0:11:08] Black must now prevent Bc6.} bxc4 {[%emt 0:00:02]} 22. Ba5 {[%emt 0:00:04] aiming for Bc6.} e4 {[%emt 0:04:17] [#]} 23. dxc4 {[%emt 0:03:38]} ({And not} 23. Bxe4 Bd4 24. Rc7 Rfc8 $15) ({White has to play} 23. Bh3 $1 $16 f5 24. dxe4) 23... Ra8 $11 {[%emt 0:00:26] The position is equal.} 24. Rxa8 {[%emt 0:03:02]} Rxa8 {[%emt 0:00:02]} 25. Bb4 {[%emt 0:01:06]} Ra6 {[%emt 0:02:04]} 26. c5 {[%emt 0:04:26][%cal Rc5d6]} dxc5 {[%emt 0:01:10]} 27. Bxc5 {[%emt 0:00:02]} Qe8 {[%emt 0:01:53]} 28. Qd2 {[%emt 0:07:50][%cal Og2e4]} Bc6 {[%emt 0:00:29]} 29. Rd1 {[%emt 0:00:44]} Ra1 {[%emt 0:00:31]} 30. Rxa1 {[%emt 0:00:12]} Bxa1 {[%emt 0:00:01]} 31. h4 {[%emt 0:02:04]} h5 {[%emt 0:00:13]} 32. Bd4 {[%emt 0:00:43]} Qd7 {[%emt 0:01:09]} 33. e3 {[%emt 0:00:22]} Bxd4 {[%emt 0:00:29]} 34. Qxd4 {[%emt 0:00:40][%mdl 4096] Endgame KQB-KQB} Qe6 {[%emt 0:00:55]} 35. Bf1 {[%emt 0:00:29]} Bd5 {[%emt 0:00:21]} 36. Bb5 {[%emt 0:00:46]} Kh7 {[%emt 0:00:14]} 37. Qc5 {[%emt 0:00:39]} Kg7 {[%emt 0:00:11]} 38. Kg2 {[%emt 0:00:11]} Qf5 {[%emt 0:00:30]} 39. Qd6 {[%emt 0:02:41]} Qf3+ {[%emt 0:00:54]} 40. Kg1 {[%emt 0:00:00]} Qd1+ {[%emt 0:00:00]} 41. Kh2 {[%emt 0:05:20]} Qb3 {[%emt 0:10:27] Prevents Bc4.} 42. Qe5+ {[%emt 0:00:58]} Kh7 {[%emt 0:00:28]} 43. Bd7 {[%emt 0:02:20]} Be6 {[%emt 0:04:00]} 44. Bxe6 {[%emt 0:06:20] Weighted Error Value: White=0.07 (flawless) /Black=0.06 (flawless)} 1/2-1/2

[Event "13th London Chess Classic 2023"]
[Site "London"]
[Date "2023.12.01"]
[Round "1.2"]
[White "Gukesh D"]
[Black "Bartel, Mateusz"]
[Result "1-0"]
[ECO "C11"]
[WhiteElo "2746"]
[BlackElo "2651"]
[Annotator "TA"]
[PlyCount "81"]
[EventDate "2023.11.27"]
[EventType "tourn"]
[EventCountry "ENG"]
[SourceTitle "playchess.com"]
[Source "ChessBase"]
[SourceQuality "1"]
[TimeControl "40/5400+30:1800+30"]

{[%evp 10,81,8,0,7,9,23,6,14,16,39,40,50,46,46,57,64,57,62,54,74,54,77,79,141,140,162,151,186,182,224,175,175,198,196,181,168,179,162,161,215,209,237,241,251,258,260,260,463,452,630,581,612,606,604,577,685,664,664,599,537,593,679,671,748,750,791,789,1556,1545,1972,1791,1633,1529]} 1. e4 {[%emt 0:00:05]} e6 {[%emt 0:00:11]} 2. d4 {[%emt 0:00:08]} d5 {[%emt 0:00:06]} 3. Nc3 {[%emt 0:00:26]} Nf6 {[%emt 0:00:08]} 4. e5 {[%emt 0:00:27]} Nfd7 {[%emt 0:00:07]} 5. f4 {[%emt 0:00:17]} c5 {[%emt 0:00:09]} 6. Nf3 {[%emt 0:00:07]} Be7 {[%emt 0:00:05] C11: French: Classical System: 4 e5 and 4 Bg5 dxe4.} 7. Be3 {[%emt 0:00:54]} O-O {[%emt 0:00:11]} 8. dxc5 {[%emt 0:06:38]} Nxc5 {[%emt 0:02:54] The position is equal.} 9. Qd2 {[%emt 0:00:49]} Nbd7 {[%emt 0:06:32]} 10. O-O-O {[%emt 0:04:48] [#]} Nb6 $146 {[%emt 0:03:29]} ({Predecessor:} 10... b6 11. h4 Bb7 12. Kb1 a6 13. Ng5 b5 14. Bd3 h6 15. b4 Na4 16. Nxa4 bxa4 {1-0 Jakovenko,D (2742)-Zvjaginsev,V (2658) RUS-chT 22nd 2015 (4.1)}) 11. Bxc5 {[%emt 0:10:24]} Bxc5 {[%emt 0:00:10]} 12. Bd3 {[%emt 0:00:03][%cal Od3h7] Bxh7+! is the strong threat.} f5 {[%emt 0:13:11]} 13. exf6 {[%emt 0:11:07] White is more active.} Qxf6 {[%emt 0:00:33]} 14. Ne2 {[%emt 0:01:56]} Bd7 {[%emt 0:02:09]} 15. Kb1 {[%emt 0:13:22]} ({But not} 15. Ne5 $6 Be8 $11) 15... Bd6 {[%emt 0:04:15][%cal Rd6f4]} 16. g3 {[%emt 0:01:11] Black is on the road to losing.} Be8 {[%emt 0:05:00]} ({Black should try} 16... Rae8) 17. Ned4 $16 {[%emt 0:00:57]} Bg6 {[%emt 0:07:00]} 18. Rhe1 {[%emt 0:07:34]} Rae8 {[%emt 0:00:23]} 19. Bxg6 {[%emt 0:02:48]} hxg6 {[%emt 0:01:32]} 20. b3 {[%emt 0:17:47]} e5 {[%emt 0:02:14]} 21. fxe5 {[%emt 0:00:15]} Bxe5 {[%emt 0:00:08]} 22. Nxe5 {[%emt 0:00:56]} Rxe5 {[%emt 0:00:08]} 23. Rxe5 {[%emt 0:00:32]} Qxe5 {[%emt 0:00:05]} 24. Re1 {[%emt 0:00:04]} Qf6 {[%emt 0:06:05] [#]} (24... Qd6 $142 25. Re6 Qa3) 25. a4 $1 $18 {[%emt 0:01:46]} Nd7 {[%emt 0:18:37] [#]} 26. Nb5 $1 {[%emt 0:02:08][%csl LRa7,LRd5]} Qc6 {[%emt 0:02:11]} 27. Nxa7 {[%emt 0:01:46]} Qc5 {[%emt 0:00:10]} 28. Nb5 {[%emt 0:01:59]} Rc8 $2 {[%emt 0:10:38]} (28... Nf6 29. Re5 Kh7) 29. b4 {[%emt 0:01:46] White is clearly winning.} Qf8 {[%emt 0:01:32]} 30. Qxd5+ {[%emt 0:00:09]} Kh7 {[%emt 0:00:16]} 31. Re4 {[%emt 0:00:28][%cal Re4h4]} (31. Qxd7 $2 {too greedy.} Qxb4+ 32. Kc1 Qxe1+ 33. Qd1 Qe4 $19) 31... Qf1+ {[%emt 0:00:39]} 32. Kb2 {[%emt 0:00:07][%cal Re4h4]} Nf6 {[%emt 0:00:07]} 33. Rh4+ {[%emt 0:00:11]} Nh5 {[%emt 0:00:05]} 34. Qd3 {[%emt 0:00:59]} Qf6+ {[%emt 0:00:21]} 35. c3 {[%emt 0:03:19]} Kh8 {[%emt 0:01:46]} 36. Nd6 {[%emt 0:01:56]} Rf8 {[%emt 0:00:02]} 37. Ne4 {[%emt 0:02:12]} Qe7 {[%emt 0:09:21]} 38. Qd6 {[%emt 0:00:16]} Qe8 {[%emt 0:00:02]} 39. g4 {[%emt 0:00:30][%cal Bg3g4,Bg4h5][%mdl 96] Pin} Rf1 {[%emt 0:00:23]} 40. gxh5 {[%emt 0:00:00]} g5 {[%emt 0:00:00]} 41. Rg4 {[%emt 0:01:12] Weighted Error Value: White=0.07 (flawless) /Black=0.44} (41. Nxg5 {gets mated.} Qe2+) 1-0

[Event "13th London Chess Classic 2023"]
[Site "London"]
[Date "2023.12.01"]
[Round "1.3"]
[White "Moussard, Jules"]
[Black "Niemann, Hans Moke"]
[Result "1/2-1/2"]
[ECO "C67"]
[WhiteElo "2639"]
[BlackElo "2659"]
[Annotator "TA"]
[PlyCount "62"]
[EventDate "2023.11.27"]
[EventType "tourn"]
[EventCountry "ENG"]
[SourceTitle "playchess.com"]
[Source "ChessBase"]
[SourceQuality "1"]
[TimeControl "40/5400+30:1800+30"]

{[%evp 18,62,23,16,16,14,23,18,27,17,27,24,18,18,19,20,25,8,12,4,4,13,14,8,19,16,15,16,18,16,16,18,17,18,18,20,25,10,14,0,0,0,0,0,0,0,0]} 1. e4 {[%emt 0:00:04]} e5 {[%emt 0:00:18]} 2. Nf3 {[%emt 0:00:07]} Nc6 {[%emt 0:00:12]} 3. Bb5 {[%emt 0:00:06]} Nf6 {[%emt 0:00:38]} 4. O-O {[%emt 0:01:10][%cal Bh1f1,Bf1e1,Be1e5][%mdl 32]} Nxe4 {[%emt 0:00:09]} 5. Re1 {[%emt 0:00:12]} Nd6 {[%emt 0:00:07]} 6. Nxe5 {[%emt 0:00:32]} Be7 {[%emt 0:00:38]} 7. Bf1 {[%emt 0:00:14]} Nxe5 {[%emt 0:00:09]} 8. Rxe5 {[%emt 0:00:05]} O-O {[%emt 0:00:10]} 9. d4 {[%emt 0:00:13]} Bf6 {[%emt 0:00:12]} 10. Re1 {[%emt 0:00:06]} Re8 {[%emt 0:00:08] 10...Re8 scores better than 10...Nf5. C67: Ruy Lopez: Berlin Defence: 4 0-0 Nxe4.} 11. Bf4 {[%emt 0:00:14]} Rxe1 {[%emt 0:00:31]} 12. Qxe1 {[%emt 0:00:06]} Ne8 {[%emt 0:00:11]} 13. c3 {[%emt 0:00:54]} d5 {[%emt 0:00:14]} 14. Nd2 {[%emt 0:00:12]} Bf5 {[%emt 0:01:22]} 15. Qe3 {[%emt 0:01:06]} c6 {[%emt 0:07:23]} 16. Re1 {[%emt 0:01:06]} h6 {[%emt 0:01:13]} 17. Qg3 {[%emt 0:04:19] [#]} Bg5 $146 {[%emt 0:09:30] [#]} ({Predecessor:} 17... Bg6 18. Nf3 Qb6 19. b4 a5 20. a3 axb4 21. axb4 Qd8 22. Ne5 Bxe5 23. dxe5 Kh7 {½-½ So,W (2652)-Aronian,L (2816) Olympiad-40 Istanbul 2012 (4.1)}) 18. h4 $1 {[%emt 0:14:18]} Bxf4 {[%emt 0:04:27]} 19. Qxf4 {[%emt 0:00:13]} Qf6 {[%emt 0:06:36]} 20. Nf3 {[%emt 0:27:07]} Be4 {[%emt 0:00:58]} 21. Qxf6 {[%emt 0:00:24]} Nxf6 {[%emt 0:00:09]} 22. Ne5 {[%emt 0:00:23]} Bf5 {[%emt 0:00:22]} 23. f3 {[%emt 0:01:02]} Nd7 {[%emt 0:02:45]} 24. g4 {[%emt 0:03:31]} Nxe5 {[%emt 0:00:10]} 25. Rxe5 $11 {[%emt 0:00:21][%mdl 4096] Endgame KRB-KRB} Bd7 {[%emt 0:00:30]} 26. Kf2 {[%emt 0:00:37]} Re8 {[%emt 0:00:35]} 27. Rxe8+ {[%emt 0:00:13]} Bxe8 {[%emt 0:00:04] The position is equal.} 28. Ke3 {[%emt 0:00:16]} g5 {[%emt 0:00:16]} 29. hxg5 {[%emt 0:00:05]} hxg5 {[%emt 0:00:03]} 30. f4 {[%emt 0:00:28]} f6 {[%emt 0:00:10]} 31. f5 {[%emt 0:00:13]} Kf8 {[%emt 0:19:51] An uneventful encounter.   Weighted Error Value: White=0.03 (flawless) /Black=0.01 (flawless)} 1/2-1/2

[Event "13th London Chess Classic 2023"]
[Site "London"]
[Date "2023.12.01"]
[Round "1.4"]
[White "Adams, Michael"]
[Black "Tabatabaei, M. Amin"]
[Result "1-0"]
[ECO "C50"]
[WhiteElo "2670"]
[BlackElo "2694"]
[Annotator "TA"]
[PlyCount "93"]
[EventDate "2023.11.27"]
[EventType "tourn"]
[EventCountry "ENG"]
[SourceTitle "playchess.com"]
[Source "ChessBase"]
[SourceQuality "1"]
[TimeControl "40/5400+30:1800+30"]

{[%evp 14,93,6,4,14,7,22,22,23,23,23,23,23,25,25,23,71,66,110,116,109,109,97,95,136,103,120,112,135,138,279,127,125,116,175,126,227,219,216,222,214,222,238,246,283,287,272,260,268,269,268,260,293,297,290,267,329,320,595,586,729,718,5057,581,345,343,341,339,327,308,335,315,622,620,603,570,615,592,562,511,489,456]} 1. e4 {[%emt 0:00:04]} e5 {[%emt 0:00:10]} 2. Nf3 {[%emt 0:00:07]} Nc6 {[%emt 0:00:05]} 3. Bc4 {[%emt 0:00:10]} Nf6 {[%emt 0:00:10]} 4. d3 {[%emt 0:00:06]} Bc5 {[%emt 0:00:05]} 5. Nc3 {[%emt 0:00:06]} h6 {[%emt 0:01:59]} 6. O-O {[%emt 0:01:36]} O-O {[%emt 0:00:34]} 7. h3 {[%emt 0:00:43]} d6 {[%emt 0:03:38]} 8. Na4 {[%emt 0:00:41]} Bb6 {[%emt 0:00:12] C50: Hungarian Defence and Giuoco Pianissimo.} 9. a3 $1 {[%emt 0:01:27][%mdl 4] is now more promising than 9.Nxb6.} Be6 {[%emt 0:01:02]} 10. Bxe6 {[%emt 0:10:40]} fxe6 {[%emt 0:00:10] The position is equal.} 11. c3 {[%emt 0:01:22]} Qe8 {[%emt 0:07:29]} 12. b4 {[%emt 0:02:43]} Ne7 {[%emt 0:04:18]} 13. Ra2 {[%emt 0:04:33] [#]} Kh8 $146 {[%emt 0:03:47]} ({Predecessor:} 13... Nh5 14. Nxb6 axb6 15. g3 b5 16. Kg2 b6 17. Nh2 Nf6 18. Be3 Qc6 19. Bd2 d5 {0-1 Van Foreest,J (2695)-Giri,A (2772) NED-ch KO Utrecht 2023 (4.5)}) 14. Re1 {[%emt 0:01:55]} g5 {[%emt 0:03:08]} (14... Ng6 $11 {might be stronger.}) 15. d4 $16 {[%emt 0:05:11]} Ng6 {[%emt 0:06:34]} 16. dxe5 {[%emt 0:06:39]} dxe5 {[%emt 0:00:15]} 17. Nxb6 {[%emt 1:00:57]} cxb6 {[%emt 0:09:13]} 18. c4 {[%emt 0:00:00][%cal Bc3c4,Bc4c5][%mdl 32] White is more active.} Qc6 {[%emt 0:05:44]} 19. Rc2 {[%emt 0:00:00]} Rad8 {[%emt 0:06:59]} 20. Qe2 {[%emt 0:00:00]} Qa4 {[%emt 0:01:50]} 21. c5 {[%emt 0:00:00]} Nh5 {[%emt 0:00:18]} (21... bxc5 $16 {might work better.} 22. Rxc5 b6) 22. Rc3 {[%emt 0:00:00]} (22. cxb6 $18 {[%cal Of3e5] and White stays clearly on top. Black must now prevent Nxe5!} axb6 23. Nxe5 {[%mdl 64] Discovered Attack} Nxe5 24. Bb2) 22... Nhf4 {[%emt 0:01:05]} 23. Bxf4 {[%emt 0:00:00]} Nxf4 {[%emt 0:08:40]} 24. Qe3 {[%emt 0:00:00]} Rd1 {[%emt 0:00:28]} (24... bxc5 $16 25. Qxc5 Kg8) 25. cxb6 $18 {[%emt 0:00:00]} axb6 {[%emt 0:00:07]} 26. Kh2 {[%emt 0:00:00]} ({But not} 26. Nxe5 $6 Rxe1+ 27. Qxe1 Qb5 $16) 26... Rxe1 {[%emt 0:01:38]} 27. Qxe1 {[%emt 0:00:00]} Qd7 {[%emt 0:03:03]} 28. g3 {[%emt 0:00:00]} ({Don't take} 28. Nxe5 $6 Qg7 29. Nf3 g4) 28... Nh5 {[%emt 0:12:07]} 29. Nxe5 {[%emt 0:00:00]} Qg7 {[%emt 0:00:03]} 30. Rf3 {[%emt 0:00:00]} Rxf3 {[%emt 0:01:59]} 31. Nxf3 {[%emt 0:00:00][%mdl 4096] Endgame KQN-KQN} Nf6 {[%emt 0:01:34]} 32. Qe3 {[%emt 0:00:00]} Qc7 {[%emt 0:01:28]} 33. Qd4 {[%emt 0:01:21]} Kg7 {[%emt 0:00:07]} 34. Ne5 {[%emt 0:00:21]} h5 {[%emt 0:00:04]} 35. Nf3 {[%emt 0:02:05]} g4 $2 {[%emt 0:01:46] [#]} (35... Kg6 36. Qd2 Nh7) 36. hxg4 {[%emt 0:01:42]} hxg4 {[%emt 0:00:02]} 37. e5 {[%emt 0:01:21]} gxf3 {[%emt 0:02:12]} 38. exf6+ {[%emt 0:00:02] KQ-KQ} Kf7 {[%emt 0:01:02]} 39. Qg4 {[%emt 0:00:55] [#] White threatens Qg7+ and mate.} Kxf6 {[%emt 0:00:07]} 40. Qxf3+ {[%emt 0:00:00]} Ke7 {[%emt 0:00:00]} 41. Qe4 {[%emt 0:01:48]} Qb8 {[%emt 0:02:32]} 42. Qh4+ {[%emt 0:05:12]} Kd7 $2 {[%emt 0:00:07]} (42... Kf7 43. Kg2 Qa7 44. Qf4+ Kg6 45. Qe4+ Kf6) 43. Qd4+ {[%emt 0:00:38] White is clearly winning.} Kc6 {[%emt 0:00:06]} 44. Qc4+ {[%emt 0:00:27]} Kd6 {[%emt 0:00:04]} 45. Qf4+ {[%emt 0:01:06]} e5 {[%emt 0:00:05]} 46. Qf6+ {[%emt 0:00:10]} Kd5 {[%emt 0:00:04]} 47. Qxb6 {[%emt 0:00:13] Weighted Error Value: White=0.06 (flawless) /Black=0.37} 1-0

[Event "13th London Chess Classic 2023"]
[Site "London"]
[Date "2023.12.01"]
[Round "1.5"]
[White "McShane, Luke J"]
[Black "Royal, Shreyas"]
[Result "1/2-1/2"]
[ECO "B51"]
[WhiteElo "2626"]
[BlackElo "2404"]
[Annotator "TA"]
[PlyCount "107"]
[EventDate "2023.11.27"]
[EventType "tourn"]
[EventCountry "ENG"]
[SourceTitle "playchess.com"]
[Source "ChessBase"]
[SourceQuality "1"]
[TimeControl "40/5400+30:1800+30"]

{[%evp 9,107,14,0,0,15,18,30,6,32,14,33,12,5,-10,0,0,0,0,0,-16,0,0,0,0,2,0,0,0,0,0,0,0,0,0,11,11,10,0,0,0,0,0,0,0,18,0,22,31,28,27,25,25,20,7,104,18,82,23,19,0,0,0,0,0,0,-10,-13,-20,0,0,0,0,0,-52,0,0,0,0,0,0,0,0,0,0,0,0,0,0,0,0,0,0,0,0,0,0,0,0,0,0]} 1. e4 {[%emt 0:00:08]} c5 {[%emt 0:00:15]} 2. Nf3 {[%emt 0:00:12]} d6 {[%emt 0:00:08]} 3. Bb5+ {[%emt 0:00:37]} Nd7 {[%emt 0:00:23]} 4. O-O {[%emt 0:00:09]} a6 {[%emt 0:00:13]} 5. Be2 {[%emt 0:00:16]} Ngf6 {[%emt 0:00:44]} 6. d3 {[%emt 0:00:06] B51: Sicilian: Moscow Variation (3 Bb5+) without 3...Bd7.} b5 {[%emt 0:05:37]} 7. a4 {[%emt 0:15:01] Black should prevent axb5.} Bb7 {[%emt 0:02:14]} 8. Na3 {[%emt 0:00:09] [#] White has an edge.} e5 $146 {[%emt 0:11:02]} ({Predecessor:} 8... e6 9. Bf4 Qb6 10. axb5 axb5 11. c4 b4 12. Nb5 Rxa1 13. Qxa1 e5 14. Bg5 Be7 {1-0 Psyk,R (2452)-Kempinski,R (2556) Rubinstein Memorial 59th 2023 (7)}) 9. c3 {[%emt 0:06:42]} Be7 {[%emt 0:11:23]} 10. Be3 {[%emt 0:00:15]} Bc6 {[%emt 0:04:49]} 11. d4 {[%emt 0:02:23]} cxd4 {[%emt 0:09:45]} (11... bxa4 12. d5 Bb7 13. Nd2 $16 (13. Qxa4 O-O $16)) 12. cxd4 {[%emt 0:00:08][%cal Ra4b5]} Bxe4 {[%emt 0:04:21]} (12... Nxe4 13. axb5 axb5 14. dxe5 $16) 13. axb5 {[%emt 0:01:18]} (13. Nd2 {keeps more tension.} Bb7 14. axb5 O-O 15. Qb3) 13... axb5 {[%emt 0:00:28]} 14. Nxb5 {[%emt 0:00:10]} Rxa1 {[%emt 0:08:29]} 15. Qxa1 {[%emt 0:00:04]} Nd5 {[%emt 0:02:16]} 16. Bd2 {[%emt 0:26:36]} O-O {[%emt 0:01:14]} 17. Rc1 {[%emt 0:00:19]} Qb8 {[%emt 0:09:43]} 18. Qa4 {[%emt 0:17:10]} N7b6 {[%emt 0:06:52]} 19. Qb3 {[%emt 0:01:24]} Bf5 {[%emt 0:01:19]} 20. dxe5 {[%emt 0:08:13]} dxe5 {[%emt 0:00:06]} 21. Bf1 {[%emt 0:03:58]} Rd8 {[%emt 0:02:53]} 22. Re1 {[%emt 0:04:58]} Bf6 {[%emt 0:00:50]} 23. Bg5 {[%emt 0:01:17]} Bxg5 {[%emt 0:04:53]} 24. Nxg5 {[%emt 0:00:04]} f6 {[%emt 0:01:26]} 25. Ne4 {[%emt 0:00:47]} Be6 {[%emt 0:00:26]} 26. Qa3 {[%emt 0:02:27]} Nc7 {[%emt 0:01:18]} 27. Nbd6 {[%emt 0:02:02]} Ne8 {[%emt 0:00:11]} 28. Nxe8 {[%emt 0:01:04]} Rxe8 {[%emt 0:00:01]} 29. b4 {[%emt 0:00:14]} Rd8 {[%emt 0:04:50]} 30. b5 {[%emt 0:00:27]} Rd4 {[%emt 0:01:14]} 31. g3 {[%emt 0:02:39]} Nc4 {[%emt 0:02:05]} (31... Qd8 $11) 32. Qc5 {[%emt 0:02:00]} (32. Qe7 $16 Bd5 33. Nc5) 32... Nd6 {[%emt 0:01:07]} (32... Qd8 $11) 33. Nc3 {[%emt 0:00:56]} ({White should try} 33. Nxd6 $16 {[%cal Oc5d4] Qxd4! is the strong threat.} Rd5 34. Qb4 Rxd6 35. Ra1) 33... Qc8 $1 $11 {[%emt 0:00:36]} 34. Qxc8+ {[%emt 0:00:20]} Bxc8 {[%emt 0:00:43]} 35. Ra1 {[%emt 0:00:53]} Bb7 {[%emt 0:00:18]} 36. Na4 {[%emt 0:00:34]} Ne4 {[%emt 0:01:04] Prevents Nc5.} 37. Bg2 {[%emt 0:01:51]} Rb4 {[%emt 0:00:09]} 38. b6 {[%emt 0:00:26]} Nd6 {[%emt 0:01:23]} 39. Bxb7 {[%emt 0:01:08]} Nxb7 {[%emt 0:00:01][%mdl 4096] Endgame KRN-KRN} 40. Rc1 {[%emt 0:00:00]} Na5 {[%emt 0:00:00]} 41. Rc8+ {[%emt 0:05:09]} Kf7 {[%emt 0:03:14]} 42. Ra8 $1 {[%emt 0:00:48] The position is equal.} Nc6 {[%emt 0:00:37]} ({Don't do} 42... Rxa4 43. b7 Rb4 44. b8=Q (44. b8=R Rxb8 45. Rxb8 g5 $16) 44... Rxb8 45. Rxb8 $16) 43. Kf1 {[%emt 0:04:46]} Ke6 {[%emt 0:10:06]} 44. Ke2 {[%emt 0:00:16]} Kd5 {[%emt 0:00:25]} 45. Kd2 {[%emt 0:02:24]} Kd4 {[%emt 0:01:09]} 46. Kc2 {[%emt 0:06:41]} e4 {[%emt 0:05:56]} 47. Rc8 {[%emt 0:04:22]} Kd5 {[%emt 0:02:08]} 48. Nc3+ {[%emt 0:02:14]} Kd6 {[%emt 0:00:07]} 49. Rg8 {[%emt 0:01:56]} Nd4+ {[%emt 0:01:37]} 50. Kd2 {[%emt 0:02:06]} Ne6 {[%emt 0:01:01]} (50... Rxb6 $2 51. Rd8+ (51. Nxe4+ Ke5 $11) (51. Rxg7 Rb2+ 52. Ke1 Nf3+ 53. Kf1 e3 $11) 51... Ke5 52. Rd5+ Ke6 53. Rxd4 $18) 51. Nxe4+ {[%emt 0:01:02][%mdl 64] [#] Promotion} Ke5 {[%emt 0:00:05]} (51... Rxe4 $2 52. b7 Rb4 53. b8=Q+ (53. b8=B+ Kd5 $11) 53... Rxb8 54. Rxb8 $18) 52. Re8 {[%emt 0:03:17] Strongly threatening Nc5.} Rxb6 {[%emt 0:00:06]} 53. Nc5 {[%emt 0:00:53] Hoping for Nd7+.} Kd5 {[%emt 0:00:05]} 54. Nxe6 {[%emt 0:00:53] Weighted Error Value: White=0.08 (flawless) /Black=0.09 (flawless)} 1/2-1/2

[Event "13th London Chess Classic 2023"]
[Site "London"]
[Date "2023.12.02"]
[Round "2.1"]
[White "Volokitin, Andrei"]
[Black "Royal, Shreyas"]
[Result "1-0"]
[ECO "C78"]
[WhiteElo "2660"]
[BlackElo "2404"]
[Annotator "ChessBase"]
[PlyCount "83"]
[EventDate "2023.11.27"]
[EventType "tourn"]
[EventCountry "ENG"]
[SourceTitle "playchess.com"]
[Source "ChessBase"]
[SourceQuality "1"]
[TimeControl "40/5400+30:1800+30"]

1. e4 {[%emt 0:00:04]} e5 {[%emt 0:00:21]} 2. Nf3 {[%emt 0:00:11]} Nc6 {[%emt 0:00:05]} 3. Bb5 {[%emt 0:02:06]} a6 {[%emt 0:00:06]} 4. Ba4 {[%emt 0:00:05]} Nf6 {[%emt 0:00:05]} 5. O-O {[%emt 0:00:05]} b5 {[%emt 0:00:06]} 6. Bb3 {[%emt 0:00:05]} Bc5 {[%emt 0:00:04]} 7. c3 {[%emt 0:01:26]} d6 {[%emt 0:00:05]} 8. d4 {[%emt 0:00:08]} Bb6 {[%emt 0:00:04]} 9. Be3 {[%emt 0:00:10]} O-O {[%emt 0:00:25]} 10. Nbd2 {[%emt 0:00:07]} Re8 {[%emt 0:01:23]} 11. a4 {[%emt 0:00:36]} Rb8 {[%emt 0:05:15]} 12. Qe2 {[%emt 0:02:12]} Bd7 {[%emt 0:06:39]} 13. axb5 {[%emt 0:40:48]} axb5 {[%emt 0:00:10]} 14. Ng5 {[%emt 0:05:04]} Rf8 {[%emt 0:12:19]} 15. dxe5 {[%emt 0:01:13]} dxe5 {[%emt 0:04:37]} 16. Bxb6 {[%emt 0:09:53]} Rxb6 {[%emt 0:00:06]} 17. f4 {[%emt 0:05:55]} exf4 {[%emt 0:26:15]} 18. e5 {[%emt 0:09:15]} Bg4 {[%emt 0:02:10]} 19. Ndf3 {[%emt 0:03:55]} Bxf3 {[%emt 0:03:25]} 20. Rxf3 {[%emt 0:06:52]} Nd5 {[%emt 0:01:34]} 21. Nh3 {[%emt 0:01:53]} Qe7 {[%emt 0:04:16]} 22. Kh1 {[%emt 0:08:44]} Nf6 {[%emt 0:11:41]} 23. Re1 {[%emt 0:00:06]} Re8 {[%emt 0:01:03]} 24. e6 {[%emt 0:00:34]} fxe6 {[%emt 0:00:33]} 25. Nxf4 {[%emt 0:00:26]} Nd8 {[%emt 0:01:37]} 26. Re3 {[%emt 0:00:31]} c5 {[%emt 0:01:21]} 27. Bxe6+ {[%emt 0:00:57]} Nxe6 {[%emt 0:00:21]} 28. Nxe6 {[%emt 0:00:30]} c4 {[%emt 0:08:00]} 29. h3 {[%emt 0:00:16]} Qd7 {[%emt 0:02:41]} 30. Nxg7 {[%emt 0:00:47]} Kxg7 {[%emt 0:00:19]} 31. Rxe8 {[%emt 0:00:07]} Qxe8 {[%emt 0:00:13]} 32. Qxe8 {[%emt 0:00:06]} Nxe8 {[%emt 0:00:01]} 33. Rxe8 {[%emt 0:00:06]} Rd6 {[%emt 0:01:46]} 34. Re5 {[%emt 0:00:29]} b4 {[%emt 0:01:20]} 35. cxb4 {[%emt 0:00:10]} Rd2 {[%emt 0:00:04]} 36. Rc5 {[%emt 0:00:22]} Rc2 {[%emt 0:00:03]} 37. Kh2 {[%emt 0:00:17]} Kg6 {[%emt 0:00:40]} 38. Kg3 {[%emt 0:00:43]} h5 {[%emt 0:00:24]} 39. h4 {[%emt 0:00:49]} Kh6 {[%emt 0:00:16]} 40. Rc6+ {[%emt 0:00:00]} Kg7 {[%emt 0:00:00]} 41. Kf3 {[%emt 0:00:41]} Kh7 {[%emt 0:00:20]} 42. g3 {[%emt 0:00:50]} 1-0